[Event "Titled Tuesday Blitz August 1 Early 2023"]
[White "Hua, Lefong"]
[Black "Berezin, Viktor"]
[WhiteFideId "2602253"]
[BlackFideId "14107872"]
[WhiteElo "2663"]
[BlackElo "2530"]
[Result "1/2-1/2"]
[Round "9"]
[TimeControl "180+1"]
[Date "2023.08.01"]
[WhiteClock "0:00:13"]
[BlackClock "0:00:10"]
[Board "56"]

1. d4 {[%clk 0:03:00]}  Nf6 {[%clk 0:02:45]} 2. c4 {[%clk 0:03:01]}  g6 {[%clk 0:02:42]} 3. Nc3 {[%clk 0:03:00]}  Bg7 {[%clk 0:02:42]} 4. e4 {[%clk 0:03:01]}  d6 {[%clk 0:02:41]} 5. f4 {[%clk 0:03:01]}  O-O {[%clk 0:02:41]} 6. Nf3 {[%clk 0:03:02]}  c6 {[%clk 0:02:41]} 7. Be2 {[%clk 0:03:02]}  a6 {[%clk 0:02:39]} 8. O-O {[%clk 0:02:57]}  b5 {[%clk 0:02:39]} 9. e5 {[%clk 0:02:49]}  Ne8 {[%clk 0:02:39]} 10. Be3 {[%clk 0:02:39]}  Nd7 {[%clk 0:02:30]} 11. Qd2 {[%clk 0:02:23]}  Nb6 {[%clk 0:02:19]} 12. b3 {[%clk 0:02:22]}  Bg4 {[%clk 0:01:55]} 13. Rac1 {[%clk 0:02:11]}  Rc8 {[%clk 0:01:52]} 14. Ne4 {[%clk 0:02:00]}  Bxf3 {[%clk 0:01:45]} 15. Rxf3 {[%clk 0:01:57]}  bxc4 {[%clk 0:01:37]} 16. bxc4 {[%clk 0:01:57]}  d5 {[%clk 0:01:38]} 17. Nc5 {[%clk 0:01:54]}  Nxc4 {[%clk 0:01:37]} 18. Bxc4 {[%clk 0:01:51]}  dxc4 {[%clk 0:01:37]} 19. Qc3 {[%clk 0:01:38]}  Nc7 {[%clk 0:01:36]} 20. Qxc4 {[%clk 0:01:35]}  Nd5 {[%clk 0:01:31]} 21. Bd2 {[%clk 0:01:35]}  a5 {[%clk 0:01:25]} 22. f5 {[%clk 0:01:30]}  Rb8 {[%clk 0:01:21]} 23. e6 {[%clk 0:01:21]}  Rb2 {[%clk 0:01:19]} 24. Bg5 {[%clk 0:01:03]}  Nb6 {[%clk 0:00:56]} 25. exf7+ {[%clk 0:01:00]}  Rxf7 {[%clk 0:00:50]} 26. Ne6 {[%clk 0:00:55]}  Qd5 {[%clk 0:00:24]} 27. Qxd5 {[%clk 0:00:50]}  cxd5 {[%clk 0:00:23]} 28. fxg6 {[%clk 0:00:31]}  hxg6 {[%clk 0:00:23]} 29. Rxf7 {[%clk 0:00:22]}  Kxf7 {[%clk 0:00:24]} 30. Nd8+ {[%clk 0:00:22]}  Ke8 {[%clk 0:00:24]} 31. Ne6 {[%clk 0:00:20]}  Bf6 {[%clk 0:00:22]} 32. Bxf6 {[%clk 0:00:16]}  exf6 {[%clk 0:00:23]} 33. a3 {[%clk 0:00:12]}  Nc4 {[%clk 0:00:22]} 34. Nc7+ {[%clk 0:00:12]}  Kf7 {[%clk 0:00:20]} 35. Nxd5 {[%clk 0:00:13]}  Nd2 {[%clk 0:00:18]} 36. Rc7+ {[%clk 0:00:11]}  Ke6 {[%clk 0:00:18]} 37. Nf4+ {[%clk 0:00:12]}  Kf5 {[%clk 0:00:18]} 38. Nd5 {[%clk 0:00:12]}  Ne4 {[%clk 0:00:17]} 39. Ne7+ {[%clk 0:00:11]}  Kg5 {[%clk 0:00:18]} 40. Kf1 {[%clk 0:00:12]}  Rf2+ {[%clk 0:00:15]} 41. Ke1 {[%clk 0:00:12]}  Rxg2 {[%clk 0:00:15]} 42. d5 {[%clk 0:00:12]}  Rd2 {[%clk 0:00:13]} 43. Ra7 {[%clk 0:00:13]}  Rd4 {[%clk 0:00:09]} 44. Rxa5 {[%clk 0:00:13]}  Kf4 {[%clk 0:00:08]} 45. Nc6 {[%clk 0:00:11]}  Rd3 {[%clk 0:00:05]} 46. Nb4 {[%clk 0:00:11]}  Rd4 {[%clk 0:00:05]} 47. Ra4 {[%clk 0:00:09]}  Nc3 {[%clk 0:00:05]} 48. Ra6 {[%clk 0:00:09]}  Nxd5 {[%clk 0:00:04]} 49. Nxd5+ {[%clk 0:00:07]}  Rxd5 {[%clk 0:00:05]} 50. a4 {[%clk 0:00:08]}  f5 {[%clk 0:00:05]} 51. Rxg6 {[%clk 0:00:08]}  Ra5 {[%clk 0:00:05]} 52. Rh6 {[%clk 0:00:07]}  Kg5 {[%clk 0:00:05]} 53. Rd6 {[%clk 0:00:07]}  Rxa4 {[%clk 0:00:05]} 54. Rd2 {[%clk 0:00:07]}  Re4+ {[%clk 0:00:05]} 55. Kf2 {[%clk 0:00:08]}  Rf4+ {[%clk 0:00:06]} 56. Kg2 {[%clk 0:00:08]}  Rg4+ {[%clk 0:00:06]} 57. Kh3 {[%clk 0:00:09]}  Rh4+ {[%clk 0:00:07]} 58. Kg3 {[%clk 0:00:10]}  Rg4+ {[%clk 0:00:08]} 59. Kf3 {[%clk 0:00:10]}  Rf4+ {[%clk 0:00:08]} 60. Ke3 {[%clk 0:00:11]}  Re4+ {[%clk 0:00:09]} 61. Kd3 {[%clk 0:00:12]}  Re7 {[%clk 0:00:09]} 62. Rg2+ {[%clk 0:00:12]}  Kh4 {[%clk 0:00:09]} 63. Rg8 {[%clk 0:00:10]}  Kh3 {[%clk 0:00:09]} 64. Rf8 {[%clk 0:00:11]}  Kxh2 {[%clk 0:00:09]} 65. Rxf5 {[%clk 0:00:11]}  Kg3 {[%clk 0:00:09]} 66. Kd4 {[%clk 0:00:11]}  Kg4 {[%clk 0:00:10]} 67. Re5 {[%clk 0:00:12]}  Rxe5 {[%clk 0:00:10]} 68. Kxe5 {[%clk 0:00:13]} 1/2-1/2


[Site "https://www.chess.com"]

[Event "Titled Tuesday Blitz August 1 Early 2023"]
[White "Molenda, Marcin"]
[Black "Weishaeutel, Moritz"]
[WhiteFideId "1173065"]
[BlackFideId "12967300"]
[WhiteElo "2520"]
[BlackElo "2642"]
[Result "0-1"]
[Round "9"]
[TimeControl "180+1"]
[Date "2023.08.01"]
[WhiteClock "0:01:41"]
[BlackClock "0:01:26"]
[Board "58"]

1. e4 {[%clk 0:03:00]}  e5 {[%clk 0:02:59]} 2. Nf3 {[%clk 0:02:59]}  Nf6 {[%clk 0:02:59]} 3. Nc3 {[%clk 0:02:58]}  Nc6 {[%clk 0:02:59]} 4. d4 {[%clk 0:02:59]}  exd4 {[%clk 0:03:00]} 5. Nxd4 {[%clk 0:03:00]}  Bb4 {[%clk 0:03:00]} 6. Nxc6 {[%clk 0:03:00]}  bxc6 {[%clk 0:03:00]} 7. Bd3 {[%clk 0:03:01]}  O-O {[%clk 0:03:00]} 8. O-O {[%clk 0:02:53]}  d5 {[%clk 0:03:00]} 9. exd5 {[%clk 0:02:53]}  cxd5 {[%clk 0:03:01]} 10. Bg5 {[%clk 0:02:53]}  Be7 {[%clk 0:02:45]} 11. Bxf6 {[%clk 0:02:50]}  Bxf6 {[%clk 0:02:46]} 12. Nxd5 {[%clk 0:02:51]}  Bxb2 {[%clk 0:02:40]} 13. Rb1 {[%clk 0:02:50]}  Be5 {[%clk 0:02:40]} 14. Be4 {[%clk 0:02:48]}  c6 {[%clk 0:01:49]} 15. Nb4 {[%clk 0:02:45]}  Qh4 {[%clk 0:01:25]} 16. f4 {[%clk 0:02:03]}  Bxf4 {[%clk 0:01:26]} 17. Bxc6 {[%clk 0:01:40]}  Bxh2+ {[%clk 0:01:24]} 18. Kh1 {[%clk 0:01:41]}  Bg3+ {[%clk 0:01:25]} 19. Kg1 {[%clk 0:01:41]}  Qh2# {[%clk 0:01:26]} 0-1


[Site "https://www.chess.com"]

[Event "Titled Tuesday Blitz August 1 Early 2023"]
[White "EsmeraldasAnderson03"]
[Black "Pham, Le Thao Nguyen"]
[BlackFideId "12401226"]
[WhiteElo "2455"]
[BlackElo "2618"]
[Result "0-1"]
[Round "9"]
[TimeControl "180+1"]
[Date "2023.08.01"]
[WhiteClock "0:00:07"]
[BlackClock "0:00:40"]
[Board "60"]

1. d4 {[%clk 0:03:00]}  d5 {[%clk 0:02:55]} 2. Nf3 {[%clk 0:03:01]}  c6 {[%clk 0:02:54]} 3. c4 {[%clk 0:03:00]}  Nf6 {[%clk 0:02:54]} 4. Nc3 {[%clk 0:03:00]}  a6 {[%clk 0:02:55]} 5. cxd5 {[%clk 0:02:59]}  cxd5 {[%clk 0:02:54]} 6. Bf4 {[%clk 0:02:59]}  Nc6 {[%clk 0:02:54]} 7. e3 {[%clk 0:03:00]}  Bf5 {[%clk 0:02:47]} 8. Qb3 {[%clk 0:02:59]}  Na5 {[%clk 0:02:43]} 9. Qa4+ {[%clk 0:02:57]}  b5 {[%clk 0:02:38]} 10. Qd1 {[%clk 0:02:48]}  e6 {[%clk 0:02:34]} 11. Rc1 {[%clk 0:02:47]}  Rc8 {[%clk 0:01:56]} 12. Nxb5 {[%clk 0:02:07]}  axb5 {[%clk 0:01:40]} 13. Bxb5+ {[%clk 0:02:07]}  Nd7 {[%clk 0:01:40]} 14. Ne5 {[%clk 0:01:52]}  Bb4+ {[%clk 0:01:39]} 15. Ke2 {[%clk 0:01:49]}  O-O {[%clk 0:01:40]} 16. Nxd7 {[%clk 0:01:40]}  e5 {[%clk 0:01:13]} 17. Nxe5 {[%clk 0:01:06]}  f6 {[%clk 0:01:11]} 18. Nf3 {[%clk 0:00:40]}  Qb6 {[%clk 0:01:10]} 19. Qa4 {[%clk 0:00:36]}  Be7 {[%clk 0:00:56]} 20. b4 {[%clk 0:00:27]}  Nc4 {[%clk 0:00:55]} 21. Bxc4 {[%clk 0:00:20]}  dxc4 {[%clk 0:00:56]} 22. a3 {[%clk 0:00:21]}  Bd3+ {[%clk 0:00:49]} 23. Kd2 {[%clk 0:00:20]}  Ra8 {[%clk 0:00:49]} 24. Qd7 {[%clk 0:00:20]}  Bxb4+ {[%clk 0:00:43]} 25. axb4 {[%clk 0:00:18]}  Qxb4+ {[%clk 0:00:44]} 26. Kd1 {[%clk 0:00:19]}  Ra2 {[%clk 0:00:43]} 27. e4 {[%clk 0:00:07]}  Be2# {[%clk 0:00:40]} 0-1


[Site "https://www.chess.com"]

[Event "Titled Tuesday Blitz August 1 Early 2023"]
[White "Bazilius, Augustinas"]
[Black "Cnejev, Vladimir-Alexandru"]
[WhiteFideId "12832251"]
[BlackFideId "1260898"]
[WhiteElo "2439"]
[BlackElo "2584"]
[Result "1/2-1/2"]
[Round "9"]
[TimeControl "180+1"]
[Date "2023.08.01"]
[WhiteClock "0:00:11"]
[BlackClock "0:00:08"]
[Board "61"]

1. d4 {[%clk 0:03:00]}  g6 {[%clk 0:02:57]} 2. c4 {[%clk 0:03:01]}  Nf6 {[%clk 0:02:56]} 3. Nf3 {[%clk 0:03:02]}  Bg7 {[%clk 0:02:55]} 4. g3 {[%clk 0:03:02]}  O-O {[%clk 0:02:54]} 5. Bg2 {[%clk 0:03:03]}  c6 {[%clk 0:02:54]} 6. O-O {[%clk 0:03:01]}  d5 {[%clk 0:02:54]} 7. cxd5 {[%clk 0:03:02]}  cxd5 {[%clk 0:02:55]} 8. Ne5 {[%clk 0:03:03]}  Nc6 {[%clk 0:02:54]} 9. Nxc6 {[%clk 0:03:03]}  bxc6 {[%clk 0:02:55]} 10. Nc3 {[%clk 0:03:02]}  Bf5 {[%clk 0:02:55]} 11. Na4 {[%clk 0:02:55]}  Ne4 {[%clk 0:02:50]} 12. f3 {[%clk 0:02:34]}  Nd6 {[%clk 0:02:49]} 13. Nc5 {[%clk 0:02:26]}  e5 {[%clk 0:02:48]} 14. dxe5 {[%clk 0:02:24]}  Bxe5 {[%clk 0:02:49]} 15. Nd3 {[%clk 0:02:20]}  Qb6+ {[%clk 0:02:37]} 16. Kh1 {[%clk 0:02:05]}  Bd4 {[%clk 0:02:37]} 17. Bf4 {[%clk 0:01:59]}  Nc4 {[%clk 0:02:36]} 18. e4 {[%clk 0:01:58]}  Be6 {[%clk 0:02:28]} 19. b3 {[%clk 0:01:54]}  Ne3 {[%clk 0:02:27]} 20. Bxe3 {[%clk 0:01:52]}  Bxe3 {[%clk 0:02:28]} 21. Qe2 {[%clk 0:01:48]}  Rad8 {[%clk 0:02:25]} 22. Rae1 {[%clk 0:01:45]}  Bh6 {[%clk 0:01:58]} 23. f4 {[%clk 0:01:42]}  dxe4 {[%clk 0:01:55]} 24. Bxe4 {[%clk 0:01:43]}  Rfe8 {[%clk 0:01:53]} 25. Ne5 {[%clk 0:01:39]}  Bg7 {[%clk 0:01:25]} 26. Nc4 {[%clk 0:01:37]}  Qc5 {[%clk 0:01:12]} 27. Qg2 {[%clk 0:01:33]}  Bd5 {[%clk 0:01:06]} 28. Ne5 {[%clk 0:01:28]}  Bxe5 {[%clk 0:00:58]} 29. Bxd5 {[%clk 0:01:27]}  Rxd5 {[%clk 0:00:53]} 30. Qf3 {[%clk 0:01:04]}  f5 {[%clk 0:00:21]} 31. Re3 {[%clk 0:00:57]}  Re7 {[%clk 0:00:15]} 32. fxe5 {[%clk 0:00:48]}  Rexe5 {[%clk 0:00:16]} 33. Rc3 {[%clk 0:00:45]}  Qd6 {[%clk 0:00:13]} 34. Rfc1 {[%clk 0:00:44]}  Rc5 {[%clk 0:00:10]} 35. Rxc5 {[%clk 0:00:36]}  Rxc5 {[%clk 0:00:11]} 36. Rxc5 {[%clk 0:00:36]}  Qxc5 {[%clk 0:00:11]} 37. Qf4 {[%clk 0:00:37]}  Qd5+ {[%clk 0:00:11]} 38. Kg1 {[%clk 0:00:35]}  Qd1+ {[%clk 0:00:10]} 39. Kg2 {[%clk 0:00:33]}  Qc2+ {[%clk 0:00:09]} 40. Kh3 {[%clk 0:00:29]}  Qxa2 {[%clk 0:00:09]} 41. Qb8+ {[%clk 0:00:27]}  Kg7 {[%clk 0:00:08]} 42. Qc7+ {[%clk 0:00:19]}  Kf6 {[%clk 0:00:07]} 43. Qd6+ {[%clk 0:00:18]}  Kf7 {[%clk 0:00:07]} 44. Qd7+ {[%clk 0:00:18]}  Kf6 {[%clk 0:00:07]} 45. Qd6+ {[%clk 0:00:18]}  Kf7 {[%clk 0:00:08]} 46. Qd7+ {[%clk 0:00:19]}  Kf6 {[%clk 0:00:08]} 47. Qd6+ {[%clk 0:00:11]} 1/2-1/2


[Site "https://www.chess.com"]

[Event "Titled Tuesday Blitz August 1 Early 2023"]
[White "NigelDwarf"]
[Black "Preotu, Razvan"]
[BlackFideId "2613280"]
[WhiteElo "2521"]
[BlackElo "2711"]
[Result "0-1"]
[Round "9"]
[TimeControl "180+1"]
[Date "2023.08.01"]
[WhiteClock "0:00:03"]
[BlackClock "0:00:03"]
[Board "64"]

1. Nf3 {[%clk 0:03:00]}  c5 {[%clk 0:02:53]} 2. e4 {[%clk 0:02:58]}  d6 {[%clk 0:02:53]} 3. Nc3 {[%clk 0:02:56]}  Nf6 {[%clk 0:02:54]} 4. d4 {[%clk 0:02:54]}  cxd4 {[%clk 0:02:55]} 5. Nxd4 {[%clk 0:02:53]}  a6 {[%clk 0:02:55]} 6. Bg5 {[%clk 0:02:53]}  e6 {[%clk 0:02:53]} 7. f4 {[%clk 0:02:52]}  Be7 {[%clk 0:02:53]} 8. Qf3 {[%clk 0:02:52]}  Qc7 {[%clk 0:02:53]} 9. O-O-O {[%clk 0:02:51]}  Nbd7 {[%clk 0:02:53]} 10. Bd3 {[%clk 0:02:50]}  b5 {[%clk 0:02:50]} 11. Rhe1 {[%clk 0:02:47]}  Bb7 {[%clk 0:02:49]} 12. Qg3 {[%clk 0:02:44]}  b4 {[%clk 0:02:48]} 13. Nd5 {[%clk 0:02:43]}  exd5 {[%clk 0:02:46]} 14. e5 {[%clk 0:02:39]}  dxe5 {[%clk 0:02:16]} 15. fxe5 {[%clk 0:02:38]}  Nh5 {[%clk 0:01:52]} 16. Qh4 {[%clk 0:02:33]}  Bxg5+ {[%clk 0:01:51]} 17. Qxg5 {[%clk 0:02:33]}  g6 {[%clk 0:01:51]} 18. g4 {[%clk 0:02:26]}  h6 {[%clk 0:01:29]} 19. Qh4 {[%clk 0:01:50]}  Nf4 {[%clk 0:01:28]} 20. e6 {[%clk 0:01:47]}  Ne5 {[%clk 0:01:18]} 21. exf7+ {[%clk 0:00:28]}  Kxf7 {[%clk 0:01:19]} 22. Rf1 {[%clk 0:00:26]}  Kg7 {[%clk 0:00:40]} 23. Ne6+ {[%clk 0:00:12]}  Nxe6 {[%clk 0:00:38]} 24. Qf6+ {[%clk 0:00:12]}  Kh7 {[%clk 0:00:30]} 25. Qxe6 {[%clk 0:00:12]}  Rhf8 {[%clk 0:00:10]} 26. Rf6 {[%clk 0:00:08]}  Rxf6 {[%clk 0:00:09]} 27. Qxf6 {[%clk 0:00:08]}  Nxd3+ {[%clk 0:00:08]} 28. Rxd3 {[%clk 0:00:09]}  Qg7 {[%clk 0:00:07]} 29. Qd6 {[%clk 0:00:08]}  Rf8 {[%clk 0:00:06]} 30. Re3 {[%clk 0:00:08]}  Qf6 {[%clk 0:00:05]} 31. Re7+ {[%clk 0:00:06]}  Kh8 {[%clk 0:00:03]} 32. Qd7 {[%clk 0:00:06]}  Qf1+ {[%clk 0:00:02]} 33. Kd2 {[%clk 0:00:05]}  Rf2+ {[%clk 0:00:03]} 34. Ke3 {[%clk 0:00:05]}  Qe2+ {[%clk 0:00:02]} 35. Kd4 {[%clk 0:00:04]}  Qc4+ {[%clk 0:00:03]} 36. Ke5 {[%clk 0:00:03]}  Qf4+ {[%clk 0:00:03]} 37. Ke6 {[%clk 0:00:03]}  Re2# {[%clk 0:00:03]} 0-1


[Site "https://www.chess.com"]

[Event "Titled Tuesday Blitz August 1 Early 2023"]
[White "Shubenkova, Veronika"]
[Black "Klukin, Kirill"]
[WhiteFideId "44124040"]
[BlackFideId "24199273"]
[WhiteElo "2518"]
[BlackElo "2687"]
[Result "0-1"]
[Round "9"]
[TimeControl "180+1"]
[Date "2023.08.01"]
[WhiteClock "0:00:59"]
[BlackClock "0:00:17"]
[Board "67"]

1. c4 {[%clk 0:02:57]}  Nf6 {[%clk 0:02:57]} 2. Nc3 {[%clk 0:02:56]}  g6 {[%clk 0:02:56]} 3. g3 {[%clk 0:02:57]}  Bg7 {[%clk 0:02:57]} 4. Bg2 {[%clk 0:02:57]}  O-O {[%clk 0:02:57]} 5. d3 {[%clk 0:02:57]}  c6 {[%clk 0:02:53]} 6. e4 {[%clk 0:02:56]}  e5 {[%clk 0:02:50]} 7. Nge2 {[%clk 0:02:55]}  d6 {[%clk 0:02:33]} 8. O-O {[%clk 0:02:55]}  Nh5 {[%clk 0:02:25]} 9. f4 {[%clk 0:02:53]}  exf4 {[%clk 0:02:24]} 10. Nxf4 {[%clk 0:02:51]}  Nxf4 {[%clk 0:02:24]} 11. gxf4 {[%clk 0:02:51]}  f5 {[%clk 0:02:23]} 12. Kh1 {[%clk 0:02:50]}  Be6 {[%clk 0:02:19]} 13. Qc2 {[%clk 0:02:42]}  fxe4 {[%clk 0:02:12]} 14. Nxe4 {[%clk 0:02:42]}  Nd7 {[%clk 0:01:53]} 15. Rb1 {[%clk 0:02:38]}  Nf6 {[%clk 0:01:40]} 16. b4 {[%clk 0:02:37]}  d5 {[%clk 0:01:37]} 17. Nc5 {[%clk 0:02:36]}  Qc8 {[%clk 0:01:19]} 18. Nxe6 {[%clk 0:02:36]}  Qxe6 {[%clk 0:01:19]} 19. Bb2 {[%clk 0:02:36]}  Rfe8 {[%clk 0:01:15]} 20. Be5 {[%clk 0:02:34]}  Ng4 {[%clk 0:01:12]} 21. Bxg7 {[%clk 0:02:32]}  Kxg7 {[%clk 0:01:12]} 22. Qc3+ {[%clk 0:02:29]}  Qf6 {[%clk 0:01:11]} 23. Qxf6+ {[%clk 0:02:23]}  Nxf6 {[%clk 0:01:01]} 24. Rbe1 {[%clk 0:02:20]}  a6 {[%clk 0:00:45]} 25. Kg1 {[%clk 0:02:18]}  d4 {[%clk 0:00:43]} 26. a4 {[%clk 0:02:17]}  Ng4 {[%clk 0:00:36]} 27. Rxe8 {[%clk 0:02:13]}  Rxe8 {[%clk 0:00:36]} 28. Be4 {[%clk 0:02:12]}  Nf6 {[%clk 0:00:34]} 29. Bg2 {[%clk 0:02:12]}  Re3 {[%clk 0:00:34]} 30. Rf3 {[%clk 0:02:12]}  Re1+ {[%clk 0:00:34]} 31. Kf2 {[%clk 0:02:12]}  Rb1 {[%clk 0:00:34]} 32. b5 {[%clk 0:02:02]}  axb5 {[%clk 0:00:34]} 33. axb5 {[%clk 0:02:02]}  cxb5 {[%clk 0:00:35]} 34. f5 {[%clk 0:02:01]}  g5 {[%clk 0:00:31]} 35. Rg3 {[%clk 0:01:54]}  h6 {[%clk 0:00:31]} 36. h4 {[%clk 0:01:46]}  g4 {[%clk 0:00:30]} 37. c5 {[%clk 0:01:41]}  Rc1 {[%clk 0:00:27]} 38. Bxb7 {[%clk 0:01:39]}  b4 {[%clk 0:00:23]} 39. Rg2 {[%clk 0:01:21]}  Rxc5 {[%clk 0:00:21]} 40. Kg3 {[%clk 0:01:20]}  Rxf5 {[%clk 0:00:22]} 41. Rb2 {[%clk 0:01:18]}  Rb5 {[%clk 0:00:22]} 42. Bc6 {[%clk 0:01:17]}  Rb6 {[%clk 0:00:21]} 43. Bg2 {[%clk 0:01:11]}  h5 {[%clk 0:00:20]} 44. Bf1 {[%clk 0:01:11]}  Nd5 {[%clk 0:00:20]} 45. Bg2 {[%clk 0:01:10]}  Nc3 {[%clk 0:00:18]} 46. Kf4 {[%clk 0:01:10]}  Kf6 {[%clk 0:00:18]} 47. Be4 {[%clk 0:01:06]}  b3 {[%clk 0:00:18]} 48. Bh7 {[%clk 0:01:05]}  Na4 {[%clk 0:00:18]} 49. Rf2 {[%clk 0:01:02]}  b2 {[%clk 0:00:17]} 50. Ke4+ {[%clk 0:01:02]}  Kg7 {[%clk 0:00:18]} 51. Kxd4 {[%clk 0:00:59]}  b1=Q {[%clk 0:00:17]} 0-1


[Site "https://www.chess.com"]

[Event "Titled Tuesday Blitz August 1 Early 2023"]
[White "Nareks, Matic"]
[Black "NovoselovRoman"]
[WhiteFideId "14629526"]
[WhiteElo "2494"]
[BlackElo "2611"]
[Result "1/2-1/2"]
[Round "9"]
[TimeControl "180+1"]
[Date "2023.08.01"]
[WhiteClock "0:00:03"]
[BlackClock "0:00:08"]
[Board "69"]

1. e4 {[%clk 0:03:00]}  d5 {[%clk 0:02:59]} 2. exd5 {[%clk 0:03:01]}  Qxd5 {[%clk 0:02:58]} 3. Nc3 {[%clk 0:03:00]}  Qd6 {[%clk 0:02:57]} 4. g3 {[%clk 0:02:59]}  Nf6 {[%clk 0:02:57]} 5. Bg2 {[%clk 0:02:59]}  c6 {[%clk 0:02:57]} 6. h3 {[%clk 0:02:59]}  Bf5 {[%clk 0:02:57]} 7. d3 {[%clk 0:02:59]}  e6 {[%clk 0:02:56]} 8. Nge2 {[%clk 0:02:59]}  Be7 {[%clk 0:02:56]} 9. O-O {[%clk 0:02:59]}  O-O {[%clk 0:02:56]} 10. Bf4 {[%clk 0:02:58]}  Qd8 {[%clk 0:02:56]} 11. Qd2 {[%clk 0:02:57]}  Nbd7 {[%clk 0:02:56]} 12. Rad1 {[%clk 0:02:56]}  Rc8 {[%clk 0:02:45]} 13. Qc1 {[%clk 0:02:55]}  Nd5 {[%clk 0:02:44]} 14. Bd2 {[%clk 0:02:52]}  Ne5 {[%clk 0:02:15]} 15. f4 {[%clk 0:02:47]}  Nd7 {[%clk 0:01:56]} 16. Kh1 {[%clk 0:02:41]}  h6 {[%clk 0:01:52]} 17. g4 {[%clk 0:02:38]}  Bh7 {[%clk 0:01:50]} 18. Ng3 {[%clk 0:02:38]}  Nxc3 {[%clk 0:01:42]} 19. Bxc3 {[%clk 0:02:30]}  Bf6 {[%clk 0:01:42]} 20. Bb4 {[%clk 0:02:21]}  Re8 {[%clk 0:01:37]} 21. Nh5 {[%clk 0:02:21]}  c5 {[%clk 0:01:28]} 22. Nxf6+ {[%clk 0:02:20]}  Nxf6 {[%clk 0:01:28]} 23. Bd2 {[%clk 0:02:13]}  b6 {[%clk 0:01:28]} 24. Rde1 {[%clk 0:02:06]}  c4 {[%clk 0:01:23]} 25. dxc4 {[%clk 0:02:06]}  Rxc4 {[%clk 0:01:22]} 26. c3 {[%clk 0:02:06]}  Be4 {[%clk 0:01:18]} 27. Qd1 {[%clk 0:01:46]}  Qa8 {[%clk 0:01:13]} 28. Qe2 {[%clk 0:01:43]}  Bxg2+ {[%clk 0:01:10]} 29. Qxg2 {[%clk 0:01:43]}  Qxg2+ {[%clk 0:01:03]} 30. Kxg2 {[%clk 0:01:44]}  Rd8 {[%clk 0:01:02]} 31. Bc1 {[%clk 0:01:42]}  Rc7 {[%clk 0:00:56]} 32. Rd1 {[%clk 0:01:41]}  Rcd7 {[%clk 0:00:56]} 33. Rxd7 {[%clk 0:01:40]}  Rxd7 {[%clk 0:00:57]} 34. Kf2 {[%clk 0:01:27]}  b5 {[%clk 0:00:58]} 35. Ke2 {[%clk 0:01:27]}  Nd5 {[%clk 0:00:55]} 36. Rd1 {[%clk 0:01:23]}  a6 {[%clk 0:00:55]} 37. Rd4 {[%clk 0:01:18]}  Rc7 {[%clk 0:00:42]} 38. Bd2 {[%clk 0:01:15]}  Kf8 {[%clk 0:00:40]} 39. a4 {[%clk 0:01:14]}  Ke7 {[%clk 0:00:38]} 40. Kd3 {[%clk 0:01:10]}  Rb7 {[%clk 0:00:36]} 41. b3 {[%clk 0:00:57]}  Nb6 {[%clk 0:00:20]} 42. axb5 {[%clk 0:00:55]}  axb5 {[%clk 0:00:21]} 43. c4 {[%clk 0:00:46]}  bxc4+ {[%clk 0:00:21]} 44. bxc4 {[%clk 0:00:47]}  Na4 {[%clk 0:00:21]} 45. h4 {[%clk 0:00:28]}  f6 {[%clk 0:00:21]} 46. h5 {[%clk 0:00:27]}  e5 {[%clk 0:00:22]} 47. fxe5 {[%clk 0:00:27]}  fxe5 {[%clk 0:00:23]} 48. Rd5 {[%clk 0:00:26]}  Ke6 {[%clk 0:00:23]} 49. Ra5 {[%clk 0:00:24]}  Nb2+ {[%clk 0:00:19]} 50. Kc3 {[%clk 0:00:21]}  Nd1+ {[%clk 0:00:19]} 51. Kc2 {[%clk 0:00:20]}  Nf2 {[%clk 0:00:19]} 52. Ra6+ {[%clk 0:00:15]}  Kf7 {[%clk 0:00:20]} 53. Rg6 {[%clk 0:00:10]}  Rc7 {[%clk 0:00:19]} 54. Be3 {[%clk 0:00:09]}  Ne4 {[%clk 0:00:14]} 55. Kd3 {[%clk 0:00:09]}  Nf6 {[%clk 0:00:15]} 56. g5 {[%clk 0:00:08]}  hxg5 {[%clk 0:00:14]} 57. Rxg5 {[%clk 0:00:08]}  Ke6 {[%clk 0:00:15]} 58. Rg6 {[%clk 0:00:07]}  Kf5 {[%clk 0:00:15]} 59. Rg5+ {[%clk 0:00:07]}  Ke6 {[%clk 0:00:15]} 60. h6 {[%clk 0:00:05]}  Rd7+ {[%clk 0:00:16]} 61. Kc3 {[%clk 0:00:05]}  Ne4+ {[%clk 0:00:16]} 62. Kc2 {[%clk 0:00:05]}  Nxg5 {[%clk 0:00:17]} 63. Bxg5 {[%clk 0:00:05]}  gxh6 {[%clk 0:00:16]} 64. Bxh6 {[%clk 0:00:05]}  Kf5 {[%clk 0:00:17]} 65. Be3 {[%clk 0:00:06]}  Ke4 {[%clk 0:00:17]} 66. Bb6 {[%clk 0:00:06]}  Rh7 {[%clk 0:00:09]} 67. c5 {[%clk 0:00:06]}  Kd5 {[%clk 0:00:10]} 68. Kd3 {[%clk 0:00:05]}  Rh3+ {[%clk 0:00:11]} 69. Ke2 {[%clk 0:00:05]}  e4 {[%clk 0:00:11]} 70. Ba7 {[%clk 0:00:05]}  Rc3 {[%clk 0:00:12]} 71. Bb6 {[%clk 0:00:05]}  Kc4 {[%clk 0:00:11]} 72. Ba7 {[%clk 0:00:03]}  Kd5 {[%clk 0:00:12]} 73. Bb6 {[%clk 0:00:03]}  Rb3 {[%clk 0:00:12]} 74. Ba7 {[%clk 0:00:03]}  Rb2+ {[%clk 0:00:07]} 75. Ke3 {[%clk 0:00:03]}  Rb3+ {[%clk 0:00:08]} 76. Ke2 {[%clk 0:00:03]}  Rc3 {[%clk 0:00:08]} 1/2-1/2


[Site "https://www.chess.com"]